[Event "CIS Master Groups 2024"]
[Site "Vasto"]
[Date "2024.04.09"]
[Round "3.20"]
[White "D'Amore, Carlo"]
[Black "Pescatore, Lorenzo"]
[Result "1/2-1/2"]
[ECO "A47"]
[WhiteElo "2376"]
[BlackElo "2358"]
[Annotator "RC"]
[PlyCount "26"]
[EventDate "2024.04.07"]
[EventType "team-tourn"]
[EventCountry "ITA"]
[SourceTitle "playchess.com"]
[Source "ChessBase"]
[SourceQuality "1"]
[TimeControl "40/5400+30:900+30"]

1. Nf3 {[%emt 0:00:07]} c5 {[%emt 0:00:08]} 2. c3 {[%emt 0:00:48]} Nf6 {[%emt 0:02:37]} 3. d4 {[%emt 0:00:50]} e6 {[%emt 0:00:17]} 4. Bg5 {[%emt 0:00:33]} b6 {[%emt 0:02:51]} 5. e3 {[%emt 0:02:30]} Bb7 {[%emt 0:00:25]} 6. Nbd2 {[%emt 0:00:11]} Be7 {[%emt 0:02:02]} 7. Bxf6 {[%emt 0:03:13]} Bxf6 {[%emt 0:11:26]} 8. Bd3 {[%emt 0:03:56]} Nc6 {[%emt 0:12:57]} 9. Qe2 {[%emt 0:11:52]} Qc7 {[%emt 0:09:51]} 10. h4 {[%emt 0:03:36]} d5 {[%emt 0:10:54]} 11. Ba6 {[%emt 0:08:23]} Qc8 {[%emt 0:14:30]} 12. Bxb7 {[%emt 0:00:35]} Qxb7 {[%emt 0:00:03]} 13. O-O {[%emt 0:11:50]} O-O {[%emt 0:06:58]} 1/2-1/2

[Event "CIS Master Groups 2024"]
[Site "Vasto"]
[Date "2024.04.09"]
[Round "3.21"]
[White "Favaloro, Andrea"]
[Black "Eljanov, Pavel"]
[Result "1/2-1/2"]
[ECO "A05"]
[WhiteElo "2412"]
[BlackElo "2706"]
[Annotator "TA"]
[PlyCount "61"]
[EventDate "2024.04.07"]
[EventType "team-tourn"]
[EventCountry "ITA"]
[SourceTitle "playchess.com"]
[Source "ChessBase"]
[SourceQuality "1"]
[TimeControl "40/5400+30:900+30"]

{[%evp 9,61,22,15,18,41,22,28,32,36,20,47,33,31,29,35,30,43,19,37,0,48,31,31,24,44,32,27,0,0,0,0,0,0,-52,-31,-110,-106,-91,15,13,24,0,53,41,46,0,94,65,84,84,137,120,119,-29991]} 1. Nf3 {[%emt 0:00:27]} Nf6 {[%emt 0:00:07]} 2. g3 {[%emt 0:00:52]} b5 {[%emt 0:00:12]} 3. Bg2 {[%emt 0:00:29]} Bb7 {[%emt 0:00:05]} 4. O-O {[%emt 0:00:17]} e6 {[%emt 0:00:08]} 5. b3 {[%emt 0:00:41]} b4 {[%emt 0:00:52]} 6. c4 {[%emt 0:00:16]} bxc3 {[%emt 0:02:19]} 7. Nxc3 {[%emt 0:00:40]} c5 {[%emt 0:02:39]} 8. Bb2 {[%emt 0:01:08][%cal Oe2e4] White has an edge.} Be7 {[%emt 0:04:50]} 9. Rc1 {[%emt 0:00:38][%cal Oe2e4]} O-O {[%emt 0:00:20]} 10. Na4 {[%emt 0:01:04]} Na6 {[%emt 0:03:56]} 11. d4 {[%emt 0:06:57]} cxd4 {[%emt 0:00:20]} 12. Qxd4 {[%emt 0:08:18]} Qb8 {[%emt 0:17:54]} 13. Rfd1 {[%emt 0:09:33]} Rd8 {[%emt 0:00:48]} 14. Qf4 {[%emt 0:18:25]} d6 {[%emt 0:01:09]} (14... Qxf4 $11 {feels stronger.} 15. gxf4 Bc6) 15. h4 {[%emt 0:02:55]} e5 {[%emt 0:09:27]} 16. Qd2 {[%emt 0:08:53]} Nc7 {[%emt 0:00:18]} 17. Qa5 {[%emt 0:01:38]} Ne6 {[%emt 0:00:23]} 18. Ng5 {[%emt 0:04:02]} Bxg2 {[%emt 0:04:33]} 19. Nxe6 {[%emt 0:02:25]} fxe6 {[%emt 0:00:29]} 20. Kxg2 {[%emt 0:00:04]} Rf8 {[%emt 0:06:54]} 21. Qc7 {[%emt 0:04:10]} (21. Qa6 $11) 21... Qe8 $15 {[%emt 0:00:14][%cal Oe8g6] Strongly threatening ...Qg6!} 22. Rxd6 {[%emt 0:03:36]} (22. Qc4 $1 $15 d5 23. Qa6) 22... Bxd6 $17 {[%emt 0:06:44]} 23. Qxd6 {[%emt 0:00:08]} Rd8 {[%emt 0:03:41]} (23... Ne4 $17 24. Qxe5 Rxf2+ 25. Kg1 Nf6 (25... Rxe2 26. Qxg7#) (25... Qg6 26. Nc3 $11)) 24. Qxe5 $11 {[%emt 0:00:36]} Rd5 {[%emt 0:00:05]} 25. Qc7 {[%emt 0:04:19]} Rd7 {[%emt 0:17:17]} (25... Rd2 $11) 26. Qc4 $36 {[%emt 0:01:52][%mdl 2048] Black is under pressure.} Qa8+ {[%emt 0:02:04]} 27. Kg1 {[%emt 0:04:56]} (27. f3 $14 {was preferrable.}) 27... Ne4 {[%emt 0:04:50]} (27... Qe4 $11 {keeps the balance.}) 28. Qxe6+ $16 {[%emt 0:01:03]} Rdf7 {[%emt 0:00:04] [#]} 29. Bd4 {[%emt 0:01:47] Hoping for Rc7.} Kh8 {[%emt 0:01:21]} (29... Re8 $142 30. Qc4 a5) 30. Qc6 {[%emt 0:02:16]} Kg8 {[%emt 0:03:27] [#]} (30... Qxc6 31. Rxc6 Rd7 32. Be3) 31. Ra1 $2 {[%emt 0:11:35][%mdl 40960] Weighted Error Value: White=0.22 (precise) /Black=0.21 (precise) .  Loses game:     	White=1     	---        Mistake:       	White=3     	Black=5      Inaccurate:     	White=2     	Black=1      OK:         	White=7     	Black=11     Best:        	White=1     	Black=2     . An unexpected result.} 1/2-1/2

[Event "CIS Master Groups 2024"]
[Site "Vasto"]
[Date "2024.04.09"]
[Round "3.22"]
[White "Sonis, Francesco"]
[Black "Iturrizaga Bonelli, Eduardo"]
[Result "1/2-1/2"]
[ECO "A13"]
[WhiteElo "2562"]
[BlackElo "2589"]
[Annotator "TA"]
[PlyCount "36"]
[EventDate "2024.04.07"]
[EventType "team-tourn"]
[EventCountry "ITA"]
[SourceTitle "playchess.com"]
[Source "ChessBase"]
[SourceQuality "1"]
[TimeControl "40/5400+30:900+30"]

{[%evp 9,36,20,22,9,9,25,13,2,3,5,3,0,2,4,14,8,18,15,13,14,9,12,25,2,25,29,24,6,21]} 1. Nf3 {[%emt 0:00:07]} d5 {[%emt 0:00:45]} 2. e3 {[%emt 0:00:07]} Nf6 {[%emt 0:01:13]} 3. c4 {[%emt 0:00:06]} e6 {[%emt 0:00:25]} 4. b3 {[%emt 0:00:06]} g6 {[%emt 0:00:15]} 5. Bb2 {[%emt 0:00:23]} Bg7 {[%emt 0:00:06]} 6. Be2 {[%emt 0:00:46]} O-O {[%emt 0:00:07]} 7. d4 {[%emt 0:01:06]} b6 {[%emt 0:01:05]} 8. O-O {[%emt 0:00:22]} Bb7 {[%emt 0:00:17]} 9. Nc3 {[%emt 0:01:15]} Nbd7 {[%emt 0:00:53]} 10. Rc1 {[%emt 0:00:17]} Qe7 {[%emt 0:12:52]} 11. cxd5 {[%emt 0:06:45]} exd5 {[%emt 0:00:07]} 12. Rc2 {[%emt 0:00:23]} c6 {[%emt 0:03:35]} 13. Qc1 {[%emt 0:00:17]} Rfe8 {[%emt 0:00:31]} 14. a4 {[%emt 0:05:06][%cal Oa4a5]} a5 {[%emt 0:05:29]} 15. Ba3 {[%emt 0:00:09]} Qe6 {[%emt 0:00:43]} 16. h3 {[%emt 0:06:26]} h5 {[%emt 0:01:09]} 17. Bd3 {[%emt 0:05:16]} Bh6 {[%emt 0:00:25] Against Ng5} 18. Re2 {[%emt 0:01:37]} Ne4 {[%emt 0:04:59] An uneventful encounter.   Weighted Error Value: White=0.06 (flawless) /Black=0.04 (flawless) .  OK:         	White=4     	Black=4} 1/2-1/2

[Event "CIS Master Groups 2024"]
[Site "Vasto"]
[Date "2024.04.09"]
[Round "3.23"]
[White "Bifulco, Michel"]
[Black "Di Paolo, Raffaele"]
[Result "0-1"]
[ECO "C14"]
[WhiteElo "2303"]
[BlackElo "2290"]
[Annotator "RC"]
[PlyCount "60"]
[EventDate "2024.04.07"]
[EventType "team-tourn"]
[EventCountry "ITA"]
[SourceTitle "playchess.com"]
[Source "ChessBase"]
[SourceQuality "1"]
[TimeControl "40/5400+30:900+30"]

1. e4 {[%emt 0:00:03]} e6 {[%emt 0:00:06]} 2. d4 {[%emt 0:00:06]} d5 {[%emt 0:00:05]} 3. Nc3 {[%emt 0:00:05]} Nf6 {[%emt 0:00:40]} 4. Bg5 {[%emt 0:00:12]} Be7 {[%emt 0:00:07]} 5. e5 {[%emt 0:00:06]} Nfd7 {[%emt 0:00:05]} 6. h4 {[%emt 0:00:05]} Nc6 {[%emt 0:00:20]} 7. Qd2 {[%emt 0:13:07]} Nb6 {[%emt 0:07:24]} 8. Nf3 {[%emt 0:05:58]} Bd7 {[%emt 0:02:28]} 9. a4 {[%emt 0:03:15]} a5 {[%emt 0:10:35]} 10. b3 {[%emt 0:02:11]} f6 {[%emt 0:01:39]} 11. Bf4 {[%emt 0:03:52]} Bb4 {[%emt 0:10:26]} 12. O-O-O {[%emt 0:20:59]} O-O {[%emt 0:12:24]} 13. exf6 {[%emt 0:05:39]} Qxf6 {[%emt 0:04:25]} 14. Bg5 {[%emt 0:06:13]} Qf7 {[%emt 0:00:39]} 15. Bb5 {[%emt 0:05:59]} Na7 {[%emt 0:03:04]} 16. Bxd7 {[%emt 0:06:19]} Nxd7 {[%emt 0:01:09]} 17. Qd3 {[%emt 0:01:11]} c5 {[%emt 0:02:45]} 18. Nb5 {[%emt 0:04:41]} c4 {[%emt 0:01:53]} 19. bxc4 {[%emt 0:01:19]} dxc4 {[%emt 0:03:38]} 20. Qxc4 {[%emt 0:00:57]} Rac8 {[%emt 0:02:24]} 21. Qd3 {[%emt 0:05:18]} Nxb5 {[%emt 0:00:10]} 22. Qxb5 {[%emt 0:00:52]} Rc6 {[%emt 0:00:45]} 23. Be3 {[%emt 0:12:08]} Rfc8 {[%emt 0:00:46]} 24. Qd3 {[%emt 0:00:26]} Rc3 {[%emt 0:01:18]} 25. Qe4 {[%emt 0:00:15]} Nf6 {[%emt 0:00:53]} 26. Qe5 {[%emt 0:00:57]} Rxc2+ {[%emt 0:02:26]} 27. Kb1 {[%emt 0:00:01]} Qg6 {[%emt 0:01:30]} 28. Qxe6+ {[%emt 0:01:14]} Kh8 {[%emt 0:00:25]} 29. Ka1 {[%emt 0:00:55]} Bc3+ {[%emt 0:00:17]} 30. Kb1 {[%emt 0:00:10]} Rb2+ {[%emt 0:00:06]} 0-1

[Event "CIS Master Groups 2024"]
[Site "Vasto"]
[Date "2024.04.10"]
[Round "4.1"]
[White "Predke, Alexandr"]
[Black "Fier, Alexandr"]
[Result "0-1"]
[ECO "E21"]
[WhiteElo "2673"]
[BlackElo "2566"]
[Annotator "TA"]
[PlyCount "106"]
[EventDate "2024.04.07"]
[EventType "team-tourn"]
[EventCountry "ITA"]
[SourceTitle "playchess.com"]
[Source "ChessBase"]
[SourceQuality "1"]
[TimeControl "40/5400+30:900+30"]

{[%evp 13,106,1,16,0,23,8,0,0,0,0,0,0,0,-7,0,-22,-23,-215,-212,-201,-214,-204,-208,-219,-220,-221,-199,-178,-164,-269,-220,-293,-270,-290,-293,-285,-288,-581,-126,-125,-77,-72,-25,-47,-29,-110,-31,-94,-30,-52,0,-60,0,-25,0,-23,0,0,0,0,0,-328,-441,-400,-454,-668,-261,-470,-468,-477,-481,-481,-481,-481,-462,-441,-132,-1315,-1181,-6571,-6183,-29975,-29976,-29977,-29978,-29977,-29978,-29978,-29979,-29986,-29987,-29987,-29988,-29988,-29989]} 1. d4 {[%emt 0:01:10]} Nf6 {[%emt 0:00:05]} 2. c4 {[%emt 0:00:05]} e6 {[%emt 0:00:04]} 3. Nc3 {[%emt 0:00:20]} Bb4 {[%emt 0:00:07]} 4. Nf3 {[%emt 0:00:06]} O-O {[%emt 0:00:04]} 5. Bg5 {[%emt 0:00:35]} c5 {[%emt 0:02:24]} 6. e3 {[%emt 0:00:34]} h6 {[%emt 0:01:10]} 7. Bh4 {[%emt 0:00:15]} cxd4 {[%emt 0:00:05]} 8. exd4 {[%emt 0:00:04]} d5 {[%emt 0:00:06]} 9. Be2 {[%emt 0:00:41]} dxc4 {[%emt 0:00:14]} 10. O-O {[%emt 0:00:06] The position is equal.} b6 {[%emt 0:00:17]} 11. Ne5 {[%emt 0:00:21]} Bb7 {[%emt 0:00:04]} 12. Bf3 {[%emt 0:00:47]} Bxf3 {[%emt 0:00:06]} 13. Qxf3 {[%emt 0:00:03]} Bxc3 $1 {[%emt 0:00:05]} 14. Qxa8 {[%emt 0:02:54]} (14. Bxf6 $5 Qxf6 15. Qxa8 Bxb2 16. Rad1 $11) 14... Bxb2 {[%emt 0:01:16]} 15. Rae1 {[%emt 0:21:58]} (15. Rab1 $1 $11 {and White has nothing to worry.}) 15... Qxd4 $19 {[%emt 0:06:43]} 16. Bxf6 {[%emt 0:01:42]} gxf6 {[%emt 0:00:06]} 17. Nf3 {[%emt 0:02:05]} Qc5 {[%emt 0:03:30] Hoping for ...Nc6.} 18. Qe4 {[%emt 0:06:56]} f5 $1 {[%emt 0:00:30]} 19. Qf4 {[%emt 0:02:54]} Bg7 {[%emt 0:00:08]} 20. g4 {[%emt 0:03:50]} Nc6 {[%emt 0:03:00]} 21. g5 {[%emt 0:02:08]} (21. gxf5 $142 Qxf5 (21... exf5 22. Kh1 $17) 22. Qxf5 exf5 23. Rc1) 21... Nd4 {[%emt 0:02:38]} 22. gxh6 {[%emt 0:11:05]} Nxf3+ {[%emt 0:00:10]} 23. Qxf3 {[%emt 0:00:03]} Bxh6 {[%emt 0:00:06]} 24. Qh5 {[%emt 0:02:57]} Kh7 {[%emt 0:00:06] White must now prevent ...Rg8+.} 25. Re3 $2 {[%emt 0:05:50]} (25. Kh1 c3 26. Rc1) 25... Qd4 $2 {[%emt 0:04:31]} (25... c3 $19 26. Rc1 c2) 26. Rd1 $17 {[%emt 0:04:29]} Qf6 {[%emt 0:04:33]} (26... Qg4+ $142 27. Qxg4 fxg4) 27. Rd7 {[%emt 0:04:57][%cal Og1h1]} a6 {[%emt 0:05:16]} (27... Qg6+ $17 28. Qxg6+ Kxg6) 28. Rg3 $11 {[%emt 0:09:47]} b5 {[%emt 0:03:17]} 29. Qf3 {[%emt 0:05:03]} (29. Rc7 $11 {keeps the balance.}) 29... Rd8 {[%emt 0:06:58]} (29... b4 $17 {Threatens to win with ...c3.} 30. Kh1 c3) 30. Rc7 {[%emt 0:00:41]} ({White should play} 30. Ra7 $15) 30... f4 {[%emt 0:07:17]} (30... Bg7 $17 31. Kg2 Rb8) 31. Rg4 {[%emt 0:04:27]} Rg8 {[%emt 0:04:35]} (31... Qf5 $15 32. h3 Rf8) 32. h3 {[%emt 0:02:27]} (32. Qe4+ $11 Kh8 33. Rxg8+ Kxg8 34. Rc8+ Bf8 35. Kf1) 32... Rg6 {[%emt 0:04:19]} ({Black should try} 32... Rxg4+ $15 33. Qxg4 Bf8 34. Qh5+ Kg7) 33. Kg2 {[%emt 0:00:41]} Bf8 {[%emt 0:08:37]} 34. Rc6 {[%emt 0:01:46]} (34. Qe4 $5) 34... Qd4 {[%emt 0:07:34]} 35. Rxg6 $1 {[%emt 0:02:05]} Kxg6 {[%emt 0:00:14]} 36. Rxa6 {[%emt 0:00:29][%mdl 4096] Endgame. KQR-KQB} Kf6 {[%emt 0:02:53] ...c3 is the strong threat.} 37. Qg4 $2 {[%emt 0:01:30][%mdl 8192] Black continues to play with concentration.} (37. Ra5 $11) 37... Bc5 $1 $19 {[%emt 0:06:13]} 38. Qh4+ {[%emt 0:00:10]} Ke5 {[%emt 0:04:22][%cal Of4f3] aiming for ...f3+!} 39. Qh8+ {[%emt 0:00:55]} (39. Qh5+ $142 f5 40. Qh8+ Ke4 41. Qa8+ Qd5 (41... Kd3 42. Qf3+ Kc2 43. Rxe6 $11) 42. Rxe6+ Kd4+ 43. Qxd5+ Kxd5 44. Re1) 39... f6 $2 {[%emt 0:01:02]} (39... Ke4 40. Qxd4+ (40. Qh7+ $2 Kd5 $19) 40... Kxd4) 40. Qh5+ {[%emt 0:00:37]} f5 {[%emt 0:00:03]} 41. Qh8+ {[%emt 0:04:32]} Ke4 {[%emt 0:00:46]} 42. Qa8+ {[%emt 0:00:06]} Qd5 $1 {[%emt 0:07:21]} ({Stronger than} 42... Kd3 43. Qf3+ Kd2 44. Rxe6 $11) 43. Rxe6+ {[%emt 0:03:04]} Kd4+ {[%emt 0:00:04]} 44. Qxd5+ {[%emt 0:00:04]} Kxd5 {[%emt 0:00:02] KR-KB} 45. Re2 {[%emt 0:07:54][%mdl 8192]} (45. Re1 $17) 45... c3 {[%emt 0:01:06]} 46. Kf1 {[%emt 0:02:29]} Kc4 {[%emt 0:00:04] ( -> ...f3)} 47. Ke1 {[%emt 0:00:03] [#]} Kd3 $1 {[%emt 0:00:22] Black mates.} 48. Kd1 {[%emt 0:00:38]} f3 {[%emt 0:00:04]} 49. Rc2 {[%emt 0:00:02] [#]} Be7 $1 {[%emt 0:00:04]} 50. Kc1 {[%emt 0:01:15]} Bg5+ {[%emt 0:00:04]} 51. Kd1 {[%emt 0:00:05]} b4 {[%emt 0:00:03]} 52. Rc1 {[%emt 0:00:58]} Bxc1 {[%emt 0:00:18]} 53. Kxc1 {[%emt 0:00:04]} Ke2 {[%emt 0:00:03] Weighted Error Value: White=0.73/Black=0.52.  Loses game:     	White=3     	---        Missed win:     	---       	Black=2      Mistake:       	White=6     	Black=7      Inaccurate:     	White=2     	---        OK:         	White=11    	Black=9      Best:        	White=7     	Black=5      Strong:       	White=1     	Black=3} 0-1

[Event "CIS Master Groups 2024"]
[Site "Vasto"]
[Date "2024.04.10"]
[Round "4.2"]
[White "Iermito, Sebastian"]
[Black "Brunello, Sabino"]
[Result "1/2-1/2"]
[ECO "D78"]
[WhiteElo "2511"]
[BlackElo "2515"]
[Annotator "TA"]
[PlyCount "27"]
[EventDate "2024.04.07"]
[EventType "team-tourn"]
[EventCountry "ITA"]
[SourceTitle "playchess.com"]
[Source "ChessBase"]
[SourceQuality "1"]
[TimeControl "40/5400+30:900+30"]

{[%evp 17,27,16,31,0,0,2,0,-13,25,17,35,18]} 1. Nf3 {[%emt 0:00:02]} d5 {[%emt 0:00:40]} 2. g3 {[%emt 0:00:05]} g6 {[%emt 0:00:50]} 3. c4 {[%emt 0:00:47]} c6 {[%emt 0:09:45]} 4. Bg2 {[%emt 0:02:22]} Bg7 {[%emt 0:01:39]} 5. O-O {[%emt 0:00:12]} Nf6 {[%emt 0:00:12]} 6. b3 {[%emt 0:01:58]} Ne4 {[%emt 0:01:20]} 7. d4 {[%emt 0:00:10]} O-O {[%emt 0:00:31]} 8. Bb2 {[%emt 0:00:51]} a5 {[%emt 0:00:09]} 9. Nc3 {[%emt 0:04:17]} Bf5 {[%emt 0:00:21]} 10. Nh4 {[%emt 0:08:55]} Nxc3 {[%emt 0:02:14]} 11. Bxc3 {[%emt 0:00:05]} Be6 {[%emt 0:01:07]} 12. f4 {[%emt 0:01:46][%cal Bf2f4,Bf4f5][%mdl 32]} Na6 {[%emt 0:06:58]} 13. Qd2 {[%emt 0:19:30]} Nc7 {[%emt 0:07:07]} 14. f5 {[%emt 0:13:39] A rather calm draw.   Weighted Error Value: White=0.17 (very precise) /Black=0.09 (flawless) .  Inaccurate:     	---       	Black=1      OK:         	---       	Black=2      Best:        	---       	Black=1} ({Much worse is} 14. Bxa5 Rxa5 (14... dxc4 15. e3 $15) 15. Qxa5 Bxd4+ 16. Kh1 Bxa1 (16... dxc4 17. Rad1 $14) 17. Rxa1 dxc4 $17) 1/2-1/2

[Event "CIS Master Groups 2024"]
[Site "Vasto"]
[Date "2024.04.10"]
[Round "4.3"]
[White "Dvirnyy, Danyyil"]
[Black "Godena, Michele"]
[Result "1/2-1/2"]
[ECO "C64"]
[WhiteElo "2480"]
[BlackElo "2429"]
[Annotator "TA"]
[PlyCount "23"]
[EventDate "2024.04.07"]
[EventType "team-tourn"]
[EventCountry "ITA"]
[SourceTitle "playchess.com"]
[Source "ChessBase"]
[SourceQuality "1"]
[TimeControl "40/5400+30:900+30"]

{[%evp 10,23,41,39,37,33,33,40,33,31,40,29,35,30,27,37]} 1. e4 {[%emt 0:00:04]} e5 {[%emt 0:00:08]} 2. Nf3 {[%emt 0:00:06]} Nc6 {[%emt 0:00:07]} 3. Bb5 {[%emt 0:04:47]} a6 {[%emt 0:11:35]} 4. Ba4 {[%emt 0:00:17]} Bc5 {[%emt 0:05:48]} 5. c3 {[%emt 0:02:33]} Nge7 {[%emt 0:00:31]} 6. O-O {[%emt 0:02:36]} Ba7 {[%emt 0:02:52]} 7. d4 {[%emt 0:00:44]} Ng6 {[%emt 0:00:18]} 8. Bg5 {[%emt 0:00:43]} f6 {[%emt 0:00:08]} 9. Be3 {[%emt 0:00:04]} O-O {[%emt 0:00:13]} 10. Nbd2 {[%emt 0:01:04]} d6 {[%emt 0:00:47]} 11. Re1 {[%emt 0:03:10]} Kh8 {[%emt 0:01:06]} 12. h3 {[%emt 0:09:54] Weighted Error Value: White=0.02 (flawless) /Black=0.02 (flawless) .  OK:         	White=4     	Black=3      Best:        	---       	Black=1} 1/2-1/2

[Event "CIS Master Groups 2024"]
[Site "Vasto"]
[Date "2024.04.10"]
[Round "4.4"]
[White "Bellia, Fabrizio"]
[Black "Gilevych, Artem"]
[Result "1/2-1/2"]
[ECO "C43"]
[WhiteElo "2384"]
[BlackElo "2417"]
[Annotator "TA"]
[PlyCount "80"]
[EventDate "2024.04.07"]
[EventType "team-tourn"]
[EventCountry "ITA"]
[SourceTitle "playchess.com"]
[Source "ChessBase"]
[SourceQuality "1"]
[TimeControl "40/5400+30:900+30"]

{[%evp 9,80,16,19,0,30,20,33,34,18,16,26,11,31,19,32,16,34,25,12,12,39,36,62,69,95,54,51,47,58,58,62,68,48,47,60,60,83,76,73,65,83,67,76,66,91,102,97,83,90,81,77,77,77,77,79,72,72,66,103,103,97,74,75,73,111,34,36,0,102,0,33,0,95]} 1. e4 {[%emt 0:00:06]} e5 {[%emt 0:00:06]} 2. Nf3 {[%emt 0:00:05]} Nf6 {[%emt 0:00:07]} 3. d4 {[%emt 0:00:18]} Nxe4 {[%emt 0:00:38]} 4. dxe5 {[%emt 0:00:09]} d5 {[%emt 0:01:19]} 5. Nbd2 {[%emt 0:00:33]} Nxd2 {[%emt 0:00:40]} 6. Bxd2 {[%emt 0:00:49]} Nc6 {[%emt 0:01:23]} 7. Bb5 {[%emt 0:05:45]} Be7 {[%emt 0:05:38] Prevents Bg5.} 8. O-O {[%emt 0:01:20] White is slightly better.} ({Don't play} 8. Bxc6+ bxc6 9. O-O O-O $15) 8... O-O {[%emt 0:04:06]} 9. Re1 {[%emt 0:02:39]} Bg4 {[%emt 0:02:31]} 10. c3 {[%emt 0:01:12] Prevents Nd4.} a6 {[%emt 0:23:37]} 11. Be2 {[%emt 0:06:49]} Qd7 {[%emt 0:13:52]} 12. Qc2 {[%emt 0:02:53]} Rae8 {[%emt 0:12:46]} 13. Rad1 {[%emt 0:04:54]} f6 {[%emt 0:04:09]} 14. exf6 {[%emt 0:03:13]} Bxf6 {[%emt 0:00:14]} 15. Be3 {[%emt 0:01:08]} Ne7 {[%emt 0:00:40]} 16. Qd2 {[%emt 0:14:43]} Qc8 {[%emt 0:01:25]} 17. Bc5 {[%emt 0:01:37]} b6 {[%emt 0:08:20]} 18. Bxe7 {[%emt 0:09:46]} Rxe7 {[%emt 0:00:08]} 19. Qxd5+ {[%emt 0:00:07]} Kh8 {[%emt 0:00:12]} 20. h3 {[%emt 0:04:01]} Be6 {[%emt 0:01:56]} 21. Qd3 {[%emt 0:02:26]} b5 {[%emt 0:02:18]} 22. Qc2 {[%emt 0:15:00]} c5 {[%emt 0:09:36]} 23. Bf1 {[%emt 0:02:14]} Rfe8 {[%emt 0:01:39]} 24. a3 {[%emt 0:01:57]} g6 {[%emt 0:00:08][%cal Bg7g6,Bg6g5][%mdl 32]} 25. Qd2 {[%emt 0:00:41]} Kg7 {[%emt 0:01:43]} 26. Qf4 {[%emt 0:03:22]} h6 {[%emt 0:01:25]} 27. Rd6 {[%emt 0:05:27]} g5 {[%emt 0:00:27]} 28. Qd2 {[%emt 0:00:17][%cal Oa3a4] White has more active pieces.} Bf7 {[%emt 0:00:58]} 29. Rxe7 {[%emt 0:01:08]} (29. a4 {is interesting.} bxa4 30. Rxe7 Rxe7 31. Qc2) 29... Bxe7 {[%emt 0:00:28]} 30. Rd7 {[%emt 0:01:31][%cal Oa3a4]} Rd8 {[%emt 0:01:50]} 31. Rxd8 {[%emt 0:01:08]} Qxd8 {[%emt 0:00:07]} 32. Qe3 {[%emt 0:02:03]} Qd6 {[%emt 0:00:29]} 33. Bd3 {[%emt 0:00:47]} Bd5 {[%emt 0:01:05]} 34. Be4 {[%emt 0:01:21] [#] Hoping for Bxd5.} Bf7 {[%emt 0:00:24]} 35. Bc2 {[%emt 0:00:55]} Qe6 {[%emt 0:00:39]} 36. Qd3 {[%emt 0:01:27] Threatens to win with Qh7+.} Kf8 {[%emt 0:00:12]} 37. Qh7 {[%emt 0:01:07]} (37. Nh2 $16) 37... Bg8 $14 {[%emt 0:00:47]} 38. Qd3 {[%emt 0:00:05]} (38. Qh8 $14 Qf6 39. Qxf6+ Bxf6 40. Nd2) 38... Bf7 $16 {[%emt 0:00:37]} 39. Qh7 {[%emt 0:01:40]} ({White should play} 39. Nh2 $16) 39... Bg8 $14 {[%emt 0:00:10]} 40. Qd3 {[%emt 0:00:14]} (40. Qh8 $14 Qf6 41. Qxf6+ Bxf6 42. Nd2) 40... Bf7 {[%emt 0:00:09] Weighted Error Value: White=0.11 (very precise) /Black=0.09 (flawless) .  Mistake:       	White=4     	---        Inaccurate:     	White=1     	Black=6      OK:         	White=14    	Black=12     Best:        	---       	Black=5} 1/2-1/2